fUSD/lending_fUSD_20260523
["ID","MTS","AMOUNT","RATE_DAILY","PERIOD"]
[422845679,1779519032000,-500.0,0.00013698,2]
[422845677,1779519032000,-500.0,0.00013698,2]
[422845676,1779519032000,-500.0,0.00013698,2]
[422845674,1779519032000,-500.0,0.00013698,2]
[422845675,1779519032000,-500.0,0.00013698,2]
[422845681,1779519032000,-500.0,0.00013999,2]
[422845680,1779519032000,-200.0,0.00013699,2]
[422845684,1779519032000,-13186.65,0.00014,2]
[422845682,1779519032000,-250.0,0.00014,2]
[422845683,1779519032000,-13186.65,0.00014,2]
[422845661,1779519032000,-315.0,0.000134,2]
[422845660,1779519032000,-1000.0,0.000134,2]
[422845673,1779519032000,-500.0,0.00013698,2]
[422845658,1779519032000,-314.80040563,0.00013105,2]
[422845628,1779519032000,-500.0,0.00011945,2]
[422845659,1779519032000,-150.03,0.00013384,2]
[422845630,1779519032000,-314.80040563,0.00012208,2]
[422845632,1779519032000,-169.11,0.00012348,2]
[422845617,1779519032000,-150.03,0.00011472,2]
[422845621,1779519032000,-66358.52,0.00011787,2]
[422845625,1779519032000,-4149.76,0.00011859,2]
[422845623,1779519032000,-164.97,0.00011859,2]
[422845636,1779519032000,-862.66,0.00012572,2]
[422845638,1779519032000,-314.80040563,0.00012656,2]
[422845640,1779519032000,-2000.0,0.00012743,2]
[422845634,1779519032000,-150.03,0.00012428,2]
[422845619,1779519032000,-314.80040563,0.00011759,2]
[422845652,1779519032000,-1224.0,0.00012927,2]
[422845657,1779519032000,-500.0,0.00013082,2]
[422845642,1779519032000,-161.08,0.00012794,2]
[422845655,1779519032000,-1800.0,0.00013082,2]
[422845653,1779519032000,-418.0,0.00012927,2]
[422845651,1779519032000,-1271.0,0.00012927,2]
[422845656,1779519032000,-800.0,0.00013082,2]
[422845648,1779519032000,-3546.0,0.00012927,2]
[422845646,1779519032000,-927.0,0.00012927,2]
[422845644,1779519032000,-1355.0,0.00012927,2]
[422845650,1779519032000,-625.0,0.00012927,2]
[422845702,1779519033000,-612.48070875,0.00014699,2]
[422845706,1779519033000,-500.0,0.00014899,2]
[422845701,1779519033000,-1600.0,0.000146,5]
[422845703,1779519033000,-300.0,0.000147,5]
[422845705,1779519033000,-599.00420568,0.00014899,2]
[422845708,1779519033000,-25000.0,0.000149,3]
[422845709,1779519033000,-300.0,0.000149,5]
[422845707,1779519033000,-500.0,0.00014899,2]
[422845710,1779519033000,-314.80040563,0.000149,2]
[422845711,1779519033000,-401.29698633,0.000149,2]
[422845700,1779519033000,-200.0,0.00014521,2]
[422845704,1779519033000,-300.0,0.000148,5]
[422845699,1779519033000,-452.0,0.0001452,2]
[422845689,1779519033000,-2000.0,0.00014159,2]
[422845697,1779519033000,-800.0,0.00014452,2]
[422845696,1779519033000,-1800.0,0.00014452,2]
[422845695,1779519033000,-314.80040563,0.00014451,2]
[422845694,1779519033000,-1000.0,0.000144,5]
[422845693,1779519033000,-1749.9639992,0.0001435,2]
[422845688,1779519033000,-314.80040563,0.00014003,2]
[422845690,1779519033000,-300.0,0.000142,5]
[422845691,1779519033000,-150.0,0.00014237,2]
[422845692,1779519033000,-600.0,0.000143,5]
[422845686,1779519033000,-13186.65,0.00014,2]
[422845687,1779519033000,-13186.65,0.00014,2]
[422845685,1779519033000,-13186.65,0.00014,2]
[422845712,1779519033000,-5000.0,0.000149,2]
[422845698,1779519033000,-1300.0,0.000145,5]
[422845716,1779519033000,-330.0,0.00014986,3]
[422845724,1779519033000,-500.0,0.00014999,2]
[422845717,1779519033000,-210.18365907,0.00014998,2]
[422845744,1779519033000,-4667.31855558,0.00015,2]
[422845739,1779519033000,-150.0,0.00015,2]
[422845741,1779519033000,-16207.8870031,0.00015,2]
[422845713,1779519033000,-150.0,0.00014925,2]
[422845742,1779519033000,-32127.9993118,0.00015,2]
[422845743,1779519033000,-348.50366075,0.00015,2]
[422845738,1779519033000,-395.0,0.00015,5]
[422845736,1779519033000,-666.0,0.00014999,2]
[422845737,1779519033000,-483.0,0.00015,5]
[422845734,1779519033000,-300.0,0.00014999,2]
[422845733,1779519033000,-327.77705025,0.00014999,2]
[422845735,1779519033000,-300.0,0.00014999,2]
[422845732,1779519033000,-500.0,0.00014999,2]
[422845729,1779519033000,-500.0,0.00014999,2]
[422845740,1779519033000,-232428.97314582,0.00015,2]
[422845730,1779519033000,-500.0,0.00014999,2]
[422845731,1779519033000,-500.0,0.00014999,2]
[422845725,1779519033000,-500.0,0.00014999,2]
[422845728,1779519033000,-500.0,0.00014999,2]
[422845727,1779519033000,-500.0,0.00014999,2]
[422845721,1779519033000,-500.0,0.00014999,2]
[422845723,1779519033000,-500.0,0.00014999,2]
[422845722,1779519033000,-500.0,0.00014999,2]
[422845720,1779519033000,-500.0,0.00014999,2]
[422845718,1779519033000,-169.45340356,0.00014999,2]
[422845715,1779519033000,-150.0,0.00014986,2]
[422845714,1779519033000,-59.64421533,0.00014982,2]
[422845719,1779519033000,-500.0,0.00014999,2]
[422845726,1779519033000,-500.0,0.00014999,2]
[422845746,1779519038000,-341.50517263,0.000147,2]
[422845747,1779519038000,-66.81529987,0.000147,2]
[422845748,1779519038000,-813.31195977,0.00015,2]
[422845750,1779519038000,-253.20358681,0.00015,2]
[422845751,1779519038000,-4198.0,0.00015,2]
[422845752,1779519038000,-1314.70254899,0.00015,2]
[422845749,1779519038000,-3216.5170958,0.00015,2]
[422845764,1779519040000,-1274.17826797,0.00015,2]
[422845763,1779519040000,-19751.56981163,0.00015,2]
[422845778,1779519043000,-202.03121031,0.00015,2]
[422845777,1779519043000,-272.21364833,0.000147,2]
[422845779,1779519043000,-488.72972609,0.00015,2]
[422845781,1779519043000,-130216.17599356,0.00015,2]
[422845780,1779519043000,-166097.89579832,0.00015,2]
[422845794,1779519067000,214.0,7.945e-05,2]
[422845797,1779519448000,2746.876967,7.778e-05,2]
[422845802,1779519571000,182.49,6.306e-05,2]
[422845801,1779519571000,182.49,6.032e-05,2]
[422845800,1779519571000,182.49,5.757e-05,2]
[422845799,1779519571000,182.49,5.483e-05,2]
[422845798,1779519571000,182.49,5.209e-05,2]
[422845804,1779519572000,182.49,6.854e-05,2]
[422845803,1779519572000,182.49,6.58e-05,2]
[422845806,1779519572000,182.49,7.402e-05,2]
[422845805,1779519572000,182.49,7.128e-05,2]
[422845807,1779519572000,182.49,7.677e-05,2]
[422845808,1779519573000,182.49,7.951e-05,2]
[422845813,1779519784000,2609.533119,8e-05,2]
[422845817,1779519830000,263.6875001,0.00028,120]
[422845818,1779519856000,18561.0,0.00028082,120]
[422845825,1779520077000,171.13,7.729e-05,2]
[422845828,1779520141000,1000.0,0.00028081,120]
[422845867,1779520234000,-250.0,8.862e-05,2]
[422845872,1779520234000,-182.49,9.322e-05,2]
[422845863,1779520234000,-3237.0,8.693e-05,2]
[422845866,1779520234000,-367.0,8.785e-05,2]
[422845869,1779520234000,-600.0,8.863e-05,2]
[422845865,1779520234000,-182.49,8.773e-05,2]
[422845870,1779520234000,-420.0,8.863e-05,2]
[422845868,1779520234000,-1680.0,8.862e-05,2]
[422845874,1779520234000,-500.0,9.612e-05,2]
[422845875,1779520234000,-346.57301077,9.612e-05,2]
[422845879,1779520234000,-500.0,9.612e-05,2]
[422845878,1779520234000,-554.88128207,9.612e-05,2]
[422845873,1779520234000,-182.49,9.596e-05,2]
[422845880,1779520234000,-519.60452008,9.612e-05,2]
[422845877,1779520234000,-500.0,9.612e-05,2]
[422845882,1779520234000,-500.0,9.612e-05,2]
[422845881,1779520234000,-344.18986782,9.612e-05,2]
[422845883,1779520234000,-166.82902197,9.612e-05,2]
[422845884,1779520234000,-500.0,9.612e-05,2]
[422845885,1779520234000,-162.55052264,9.612e-05,2]
[422845876,1779520234000,-390.7570226,9.612e-05,2]
[422845871,1779520234000,-182.49,9.047e-05,2]
[422845848,1779520234000,-150.0,8.216e-05,2]
[422845856,1779520234000,-182.49,8.499e-05,2]
[422845887,1779520234000,-449.02203799,9.612e-05,2]
[422845837,1779520234000,-285.0,8.056e-05,2]
[422845838,1779520234000,-289.85005636,8.056e-05,2]
[422845840,1779520234000,-250.0,8.056e-05,2]
[422845841,1779520234000,-300.0,8.057e-05,2]
[422845842,1779520234000,-1200.0,8.057e-05,2]
[422845839,1779520234000,-1200.0,8.056e-05,2]
[422845845,1779520234000,-376.82176947,8.057e-05,2]
[422845846,1779520234000,-320.3653,8.058e-05,2]
[422845843,1779520234000,-300.0,8.057e-05,2]
[422845844,1779520234000,-300.0,8.057e-05,2]
[422845851,1779520234000,-208.78535381,8.264e-05,2]
[422845847,1779520234000,-150.0,8.136e-05,2]
[422845849,1779520234000,-182.49,8.225e-05,2]
[422845853,1779520234000,-150.0,8.297e-05,2]
[422845855,1779520234000,-150.0,8.458e-05,2]
[422845850,1779520234000,-160.0,8.252e-05,2]
[422845854,1779520234000,-150.0,8.377e-05,2]
[422845859,1779520234000,-6200.73358668,8.598e-05,2]
[422845852,1779520234000,-215.31523495,8.264e-05,2]
[422845857,1779520234000,-244.0,8.538e-05,2]
[422845861,1779520234000,-2775.0,8.686e-05,2]
[422845898,1779520234000,-500.0,9.612e-05,2]
[422845907,1779520234000,-500.0,9.612e-05,2]
[422845899,1779520234000,-500.0,9.612e-05,2]
[422845914,1779520234000,-500.0,9.612e-05,2]
[422845918,1779520234000,-500.0,9.612e-05,2]
[422845915,1779520234000,-500.0,9.612e-05,2]
[422845920,1779520234000,-500.0,9.612e-05,2]
[422845921,1779520234000,-500.0,9.612e-05,2]
[422845897,1779520234000,-500.0,9.612e-05,2]
[422845916,1779520234000,-500.0,9.612e-05,2]
[422845917,1779520234000,-500.0,9.612e-05,2]
[422845922,1779520234000,-500.0,9.612e-05,2]
[422845924,1779520234000,-500.0,9.612e-05,2]
[422845925,1779520234000,-500.0,9.612e-05,2]
[422845926,1779520234000,-500.0,9.612e-05,2]
[422845935,1779520234000,-619507.24557304,9.613e-05,2]
[422845928,1779520234000,-500.0,9.612e-05,2]
[422845930,1779520234000,-500.0,9.612e-05,2]
[422845927,1779520234000,-500.0,9.612e-05,2]
[422845931,1779520234000,-500.0,9.612e-05,2]
[422845929,1779520234000,-500.0,9.612e-05,2]
[422845932,1779520234000,-500.0,9.612e-05,2]
[422845933,1779520234000,-500.0,9.612e-05,2]
[422845934,1779520234000,-500.0,9.612e-05,2]
[422845912,1779520234000,-500.0,9.612e-05,2]
[422845923,1779520234000,-238.90283645,9.612e-05,2]
[422845919,1779520234000,-500.0,9.612e-05,2]
[422845909,1779520234000,-500.0,9.612e-05,2]
[422845890,1779520234000,-500.0,9.612e-05,2]
[422845888,1779520234000,-500.0,9.612e-05,2]
[422845889,1779520234000,-500.0,9.612e-05,2]
[422845913,1779520234000,-500.0,9.612e-05,2]
[422845892,1779520234000,-500.0,9.612e-05,2]
[422845886,1779520234000,-500.0,9.612e-05,2]
[422845893,1779520234000,-500.0,9.612e-05,2]
[422845894,1779520234000,-500.0,9.612e-05,2]
[422845895,1779520234000,-500.0,9.612e-05,2]
[422845896,1779520234000,-500.0,9.612e-05,2]
[422845891,1779520234000,-500.0,9.612e-05,2]
[422845901,1779520234000,-500.0,9.612e-05,2]
[422845900,1779520234000,-500.0,9.612e-05,2]
[422845905,1779520234000,-500.0,9.612e-05,2]
[422845910,1779520234000,-500.0,9.612e-05,2]
[422845908,1779520234000,-500.0,9.612e-05,2]
[422845906,1779520234000,-500.0,9.612e-05,2]
[422845904,1779520234000,-500.0,9.612e-05,2]
[422845902,1779520234000,-500.0,9.612e-05,2]
[422845911,1779520234000,-500.0,9.612e-05,2]
[422845903,1779520234000,-500.0,9.612e-05,2]
[422845944,1779520235000,-587.0,9.749e-05,2]
[422845951,1779520235000,-255.0,0.00010598,2]
[422845948,1779520235000,-182.49,0.00010418,2]
[422845949,1779520235000,-183.2,0.00010427,2]
[422845942,1779520235000,-200.0,9.699e-05,2]
[422845943,1779520235000,-9715.97,9.713e-05,2]
[422845946,1779520235000,-165.25,9.875e-05,2]
[422845940,1779520235000,-209.4,9.634e-05,2]
[422845953,1779520235000,-823.0,0.00010724,2]
[422845945,1779520235000,-182.49,9.87e-05,2]
[422845938,1779520235000,-3168.38872919,9.613e-05,2]
[422845947,1779520235000,-182.49,0.00010144,2]
[422845936,1779520235000,-101574.09930008,9.613e-05,2]
[422845937,1779520235000,-151801.50079769,9.613e-05,2]
[422845939,1779520235000,-150.0,9.634e-05,2]
[422845952,1779520235000,-250.0,0.00010645,2]
[422845941,1779520235000,-7444.49401311,9.674e-05,2]
[422845956,1779520235000,-152.0,0.00011,3]
[422845967,1779520235000,-718.88,0.00012329,2]
[422845966,1779520235000,-2000.0,0.0001227,2]
[422845969,1779520235000,-3512.69439218,0.00012364,2]
[422845961,1779520235000,-500.0,0.00011801,2]
[422845968,1779520235000,-664.7106,0.00012364,2]
[422845965,1779520235000,-418.0,0.00012228,2]
[422845964,1779520235000,-6060.0,0.00012228,2]
[422845950,1779520235000,-723.73,0.00010562,2]
[422845963,1779520235000,-1224.0,0.00012228,2]
[422845958,1779520235000,-165.25,0.00011505,2]
[422845954,1779520235000,-2000.0,0.00010907,2]
[422845960,1779520235000,-1152.0,0.00011796,2]
[422845959,1779520235000,-171.13,0.00011594,2]
[422845955,1779520235000,-150.0,0.00010959,2]
[422845957,1779520235000,-152.0,0.00011,5]
[422845962,1779520235000,-500.0,0.00012075,2]
[422845971,1779520238000,-151.0,9.5e-05,2]
[422845972,1779520238000,-421.8835406,0.00012364,2]
[422845974,1779520238000,-292.399994,0.00012364,2]
[422845973,1779520238000,-2212.43482613,0.00012364,2]
[422845986,1779520238000,-349.7345433,0.000124,2]
[422845988,1779520238000,-192.56304368,0.000124,2]
[422845989,1779520238000,-1000.0,0.00012462,2]
[422845975,1779520238000,-4503.00210544,0.00012364,2]
[422845982,1779520238000,-8779.15242029,0.00012364,2]
[422845984,1779520238000,-2500.0,0.00012365,2]
[422845991,1779520238000,-300.0,0.00012464,2]
[422845993,1779520238000,-7345.67339304,0.00012465,2]
[422845992,1779520238000,-253.0,0.00012464,5]
[422845979,1779520238000,-265.51072136,0.00012364,2]
[422845990,1779520238000,-3303.22775504,0.00012463,2]
[422846239,1779520240000,-400.0,0.00012465,2]
[422846231,1779520240000,-688.82855028,0.00012465,2]
[422846274,1779520241000,-376.78,0.00012465,2]
[422846529,1779520243000,-750.44531477,0.00012465,2]
[422846530,1779520243000,-23110.95553961,0.00012465,2]
[422846531,1779520244000,-226076.64204512,0.00012465,2]
[422846538,1779520246000,-3604.2395,0.00012465,2]
[422846539,1779520247000,-1507.69994,0.00012465,2]
[422846540,1779520247000,-1723.73350908,0.00012465,2]
[422846785,1779520506000,5103.0,0.0002808,120]
[422846786,1779520530000,5747.0,0.0002808,120]
[422846792,1779520575000,750.0,0.00028,120]
[422846849,1779520707000,490.63,6.038e-05,2]
[422846847,1779520707000,490.63,5.736e-05,2]
[422846857,1779520708000,490.63,7.547e-05,2]
[422846855,1779520708000,490.63,7.245e-05,2]
[422846854,1779520708000,490.63,6.943e-05,2]
[422846852,1779520708000,490.63,6.641e-05,2]
[422846850,1779520708000,490.63,6.339e-05,2]
[422846858,1779520709000,490.63,7.849e-05,2]
[422846881,1779520819000,-490.63,8.151e-05,2]
[422846882,1779520819000,-490.63,8.452e-05,2]
[422846883,1779520819000,-218.74,8.754e-05,2]
[422846909,1779521084000,-271.89,8.754e-05,2]
[422846925,1779521340000,1000.0,0.0002808,120]
[422846945,1779521431000,-500.0,9.579e-05,2]
[422846952,1779521431000,-197.67189033,9.796e-05,2]
[422846954,1779521431000,-309.58823118,9.962e-05,2]
[422846950,1779521431000,-478.27142555,9.766e-05,2]
[422846949,1779521431000,-215.31523495,9.754e-05,2]
[422846948,1779521431000,-208.78535381,9.754e-05,2]
[422846953,1779521431000,-181.04176882,9.962e-05,2]
[422846947,1779521431000,-490.63,9.66e-05,2]
[422846937,1779521431000,-250.0,8.981e-05,2]
[422846946,1779521431000,-786.67524672,9.63e-05,2]
[422846944,1779521431000,-2052.31787094,9.574e-05,2]
[422846943,1779521431000,-292.97700002,9.574e-05,2]
[422846942,1779521431000,-82.04602904,9.574e-05,2]
[422846941,1779521431000,-490.63,9.358e-05,2]
[422846940,1779521431000,-193.03554673,9.232e-05,2]
[422846939,1779521431000,-56.96445327,9.232e-05,2]
[422846955,1779521431000,-151.0,0.0001,2]
[422846956,1779521431000,-1200.0,0.00010094,2]
[422846951,1779521431000,-52.32810967,9.796e-05,2]
[422846938,1779521431000,-490.63,9.056e-05,2]
[422846968,1779521431000,-490.63,0.00010565,2]
[422846976,1779521431000,-185.07375356,0.00011,2]
[422846979,1779521431000,-236.4807372,0.00011,2]
[422846974,1779521431000,-309.12405745,0.00010976,2]
[422846972,1779521431000,-529.39305774,0.00010976,2]
[422846970,1779521431000,-490.63,0.00010867,2]
[422846973,1779521431000,-257.28218897,0.00010976,2]
[422846981,1779521431000,-401.85980006,0.00011066,2]
[422846971,1779521431000,-150.0,0.00010959,2]
[422846965,1779521431000,-191.76039555,0.00010174,2]
[422846958,1779521431000,-485.11,0.0001011,2]
[422846961,1779521431000,-29696.05375838,0.00010146,2]
[422846962,1779521431000,-129494.56624162,0.00010146,2]
[422846963,1779521431000,-157.42200776,0.00010146,2]
[422846959,1779521431000,-150.0,0.00010144,2]
[422846957,1779521431000,-176.86446495,0.00010095,2]
[422846964,1779521431000,-1808.23960445,0.00010174,2]
[422846967,1779521431000,-490.63,0.00010264,2]
[422846960,1779521431000,-300.0,0.00010144,2]
[422846969,1779521431000,-200.0,0.0001065,2]
[422846966,1779521431000,-786.67524671,0.00010253,2]
[422846993,1779521437000,-1248.91052558,0.00011066,2]
[422846992,1779521437000,-597.34621392,0.00011066,2]
[422846994,1779521437000,-21526.82891913,0.00011066,2]
[422846998,1779521437000,-7500.93599774,0.00011066,2]
[422846996,1779521437000,-290.84887371,0.00011066,2]
[422846997,1779521437000,-1049.53799999,0.00011066,2]
[422846999,1779521437000,-673.39682784,0.00011066,2]
[422846995,1779521437000,-1733.58218583,0.00011066,2]
[422847005,1779521438000,-1161.0645719,0.00011066,2]
[422847007,1779521438000,-592.58807445,0.00011066,2]
[422847008,1779521438000,-720.08890773,0.00011066,2]
[422847010,1779521438000,-4431.7911637,0.00011076,2]
[422847006,1779521438000,-80902.37335018,0.00011066,2]
[422847009,1779521438000,-9968.83697724,0.00011066,2]
[422847013,1779521438000,-302.97385118,0.00011099,2]
[422847011,1779521438000,-1086.5436573,0.00011076,2]
[422847012,1779521438000,-160.99405968,0.00011099,2]
[422847020,1779521439000,-509.32134718,0.00011099,2]
[422847036,1779521442000,-388.11006009,0.00011104,2]
[422847035,1779521442000,-5.74736351,0.00011099,2]
[422847054,1779521446000,-200.0,0.00011742,2]
[422847045,1779521446000,-255.0,0.00011148,2]
[422847046,1779521446000,-420.0,0.00011157,2]
[422847047,1779521446000,-490.63,0.00011169,2]
[422847044,1779521446000,-1291.88993991,0.00011104,2]
[422847049,1779521446000,-979.03662153,0.00011412,2]
[422847052,1779521446000,-309.12405738,0.00011537,2]
[422847048,1779521446000,-160.0,0.00011242,2]
[422847051,1779521446000,-490.63,0.00011471,2]
[422847053,1779521446000,-347.31,0.00011646,2]
[422847055,1779521446000,-979.03662153,0.00011848,2]
[422847056,1779521446000,-250.0,0.00011866,2]
[422847059,1779521446000,-301.32,0.00012,2]
[422847057,1779521446000,-347.31,0.00011937,2]
[422847058,1779521446000,-372.9153187,0.00012,2]
[422847050,1779521446000,-2000.0,0.00011446,2]
[422847107,1779521726000,225.68644208,0.00027461,120]
[422847108,1779521730000,169.26483156,0.00027461,120]
[422847109,1779521901000,192.64064123,0.00013,7]
[422847110,1779521901000,192.64064123,0.00013,7]
[422847124,1779521960000,-172.26,9.844e-05,2]
[422847123,1779521960000,-624.0,9.77e-05,2]
[422847113,1779521960000,-150.0,9.77e-05,2]
[422847112,1779521960000,-500.0,9.77e-05,2]
[422847114,1779521960000,-500.0,9.77e-05,2]
[422847115,1779521960000,-150.0,9.77e-05,2]
[422847116,1779521960000,-500.0,9.77e-05,2]
[422847111,1779521960000,-500.0,9.77e-05,2]
[422847118,1779521960000,-500.0,9.77e-05,2]
[422847120,1779521960000,-500.0,9.77e-05,2]
[422847117,1779521960000,-156.00936363,9.77e-05,2]
[422847121,1779521960000,-500.0,9.77e-05,2]
[422847122,1779521960000,-500.0,9.77e-05,2]
[422847119,1779521960000,-500.0,9.77e-05,2]
[422847125,1779521961000,-2147.835,9.844e-05,2]
[422847126,1779521961000,-250.0,9.943e-05,2]
[422847127,1779521961000,-250.0,0.00010003,2]
[422847128,1779521961000,-1200.0,0.00010042,2]
[422847129,1779521961000,-300.0,0.00010042,2]
[422847132,1779521961000,-154.40903449,0.00010042,2]
[422847131,1779521961000,-151.0,0.00010042,2]
[422847130,1779521961000,-150.0,0.00010042,2]
[422847133,1779521961000,-28373.48660188,0.00010043,2]
[422847134,1779521962000,198.47823641,0.00013,7]
[422847135,1779522239000,166.73,4.898e-05,2]
[422847137,1779522240000,166.73,5.413e-05,2]
[422847136,1779522240000,166.73,5.156e-05,2]
[422847138,1779522240000,166.73,5.671e-05,2]
[422847140,1779522240000,166.73,6.187e-05,2]
[422847139,1779522240000,166.73,5.929e-05,2]
[422847145,1779522241000,166.73,7.476e-05,2]
[422847144,1779522241000,166.73,7.218e-05,2]
[422847143,1779522241000,166.73,6.96e-05,2]
[422847142,1779522241000,166.73,6.702e-05,2]
[422847141,1779522241000,166.73,6.445e-05,2]
[422847147,1779522242000,166.73,7.991e-05,2]
[422847146,1779522242000,166.73,7.734e-05,2]
[422847149,1779522242000,166.73,8.507e-05,2]
[422847148,1779522242000,166.73,8.249e-05,2]
[422847150,1779522275000,300.0,0.0001,3]
[422847157,1779522452000,1000.0,0.0001,3]
[422847158,1779522540000,1000.0,0.00028079,120]
[422847226,1779522632000,-150.0,9.495e-05,2]
[422847231,1779522632000,-500.0,9.496e-05,2]
[422847229,1779522632000,-853.0,9.496e-05,2]
[422847228,1779522632000,-853.0,9.496e-05,2]
[422847230,1779522632000,-853.0,9.496e-05,2]
[422847216,1779522632000,-166.73,8.765e-05,2]
[422847225,1779522632000,-52.19314984,9.28e-05,2]
[422847224,1779522632000,-114.53685016,9.28e-05,2]
[422847223,1779522632000,-166.73,9.022e-05,2]
[422847222,1779522632000,-128.73314985,8.894e-05,2]
[422847218,1779522632000,-121.26685015,8.894e-05,2]
[422847227,1779522632000,-1200.0,9.495e-05,2]
[422847232,1779522632000,-853.0,9.496e-05,2]
[422847243,1779522632000,-853.0,9.496e-05,2]
[422847235,1779522632000,-500.0,9.496e-05,2]
[422847233,1779522632000,-500.0,9.496e-05,2]
[422847245,1779522632000,-853.0,9.496e-05,2]
[422847247,1779522632000,-853.0,9.496e-05,2]
[422847244,1779522632000,-853.0,9.496e-05,2]
[422847242,1779522632000,-853.0,9.496e-05,2]
[422847237,1779522632000,-294.68627542,9.496e-05,2]
[422847246,1779522632000,-853.0,9.496e-05,2]
[422847239,1779522632000,-853.0,9.496e-05,2]
[422847236,1779522632000,-853.0,9.496e-05,2]
[422847241,1779522632000,-853.0,9.496e-05,2]
[422847234,1779522632000,-853.0,9.496e-05,2]
[422847240,1779522632000,-853.0,9.496e-05,2]
[422847238,1779522632000,-853.0,9.496e-05,2]
[422847286,1779522633000,-500.0,9.496e-05,2]
[422847285,1779522633000,-500.0,9.496e-05,2]
[422847281,1779522633000,-500.0,9.496e-05,2]
[422847284,1779522633000,-375.36245627,9.496e-05,2]
[422847279,1779522633000,-500.0,9.496e-05,2]
[422847283,1779522633000,-500.0,9.496e-05,2]
[422847280,1779522633000,-500.0,9.496e-05,2]
[422847278,1779522633000,-500.0,9.496e-05,2]
[422847277,1779522633000,-500.0,9.496e-05,2]
[422847287,1779522633000,-543.92832042,9.496e-05,2]
[422847282,1779522633000,-500.0,9.496e-05,2]
[422847288,1779522633000,-615.0,9.496e-05,2]
[422847296,1779522633000,-615.0,9.496e-05,2]
[422847290,1779522633000,-615.0,9.496e-05,2]
[422847293,1779522633000,-615.0,9.496e-05,2]
[422847294,1779522633000,-615.0,9.496e-05,2]
[422847292,1779522633000,-615.0,9.496e-05,2]
[422847295,1779522633000,-615.0,9.496e-05,2]
[422847276,1779522633000,-500.0,9.496e-05,2]
[422847297,1779522633000,-615.0,9.496e-05,2]
[422847298,1779522633000,-615.0,9.496e-05,2]
[422847299,1779522633000,-615.0,9.496e-05,2]
[422847302,1779522633000,-615.0,9.496e-05,2]
[422847308,1779522633000,-615.0,9.496e-05,2]
[422847291,1779522633000,-615.0,9.496e-05,2]
[422847268,1779522633000,-150.0,9.496e-05,2]
[422847267,1779522633000,-150.0,9.496e-05,2]
[422847271,1779522633000,-246.10932154,9.496e-05,2]
[422847252,1779522633000,-853.0,9.496e-05,2]
[422847251,1779522633000,-853.0,9.496e-05,2]
[422847250,1779522633000,-853.0,9.496e-05,2]
[422847249,1779522633000,-853.0,9.496e-05,2]
[422847248,1779522633000,-853.0,9.496e-05,2]
[422847262,1779522633000,-500.0,9.496e-05,2]
[422847261,1779522633000,-500.0,9.496e-05,2]
[422847253,1779522633000,-853.0,9.496e-05,2]
[422847263,1779522633000,-150.0,9.496e-05,2]
[422847264,1779522633000,-150.0,9.496e-05,2]
[422847254,1779522633000,-853.0,9.496e-05,2]
[422847257,1779522633000,-500.0,9.496e-05,2]
[422847255,1779522633000,-865.11068258,9.496e-05,2]
[422847259,1779522633000,-500.0,9.496e-05,2]
[422847256,1779522633000,-245.64972781,9.496e-05,2]
[422847258,1779522633000,-500.0,9.496e-05,2]
[422847260,1779522633000,-500.0,9.496e-05,2]
[422847266,1779522633000,-500.0,9.496e-05,2]
[422847274,1779522633000,-500.0,9.496e-05,2]
[422847265,1779522633000,-510.3300946,9.496e-05,2]
[422847303,1779522633000,-615.0,9.496e-05,2]
[422847275,1779522633000,-500.0,9.496e-05,2]